{"text_format":"1","workbook":"xlsx","n_sheets":5,"sheets":["Ficha","Banco","Parametros","Plan1","Plan2"],"not_rendered":{"charts":0,"images":2,"macros":1,"external_links":0,"defined_names":1,"comments":0,"pivot_tables":0},"unopened":[],"bounds":{"document_bytes":16777216,"sheet_cells":100000,"rows_first":2000,"rows_last":500,"rows_between":2000,"halvings":0,"cell_chars":16384,"cell_head_chars":4096},"cells_cut":0,"cells_raw":0,"read":"whole","date_system":"1900"}

{"sheet":"Ficha","index":0,"n_rows":34,"n_cols":39,"rows_kept":34,"cut":false,"hidden":false,"merged":[[1,44,1,45],[33,0,33,41],[3,0,3,2],[3,7,3,9],[3,14,3,16],[3,21,3,29],[31,0,31,2],[31,7,31,9],[31,14,31,16],[31,21,31,29],[30,0,30,3],[30,4,30,41],[31,30,31,41],[29,0,29,6],[29,7,29,41],[26,0,26,41],[28,0,28,11],[28,12,28,27],[28,29,28,31],[28,32,28,33],[28,35,28,36],[28,38,28,41],[24,0,24,1],[24,19,24,27],[24,28,24,41],[24,2,24,13],[22,0,22,8],[22,9,22,41],[23,0,23,1],[23,2,23,13],[23,15,23,21],[23,22,23,27],[23,29,23,31],[23,32,23,41],[19,27,19,32],[19,33,19,41],[19,15,19,22],[20,4,20,15],[20,16,20,20],[20,22,20,24],[20,25,20,41],[18,0,18,4],[18,8,18,9],[18,14,18,15],[18,17,18,20],[18,21,18,23],[19,0,19,4],[19,8,19,14],[16,32,16,41],[17,0,17,4],[17,8,17,12],[17,17,17,20],[17,25,17,29],[17,34,17,37],[16,0,16,3],[16,7,16,8],[16,13,16,14],[16,16,16,18],[16,19,16,28],[16,30,16,31],[14,17,14,24],[14,3,14,11],[14,26,14,31],[14,32,14,41],[15,0,15,2],[15,3,15,41],[13,0,13,1],[12,27,12,41],[13,18,13,24],[13,25,13,41],[13,2,13,10],[14,0,14,2],[14,13,14,16],[12,0,12,2],[12,24,12,26],[13,12,13,13],[12,3,12,22],[13,14,13,16],[8,30,8,41],[9,6,9,41],[10,6,10,41],[11,0,11,3],[11,4,11,41],[8,2,8,13],[10,0,10,5],[9,0,9,5],[1,12,1,27],[2,4,2,41],[1,29,1,31],[3,30,3,41],[5,7,5,41],[6,8,6,9],[6,11,6,12],[6,14,6,17],[6,37,6,41],[7,0,7,1],[7,29,7,31],[7,15,7,21],[8,0,8,1],[8,24,8,29],[7,2,7,13],[7,22,7,27],[0,0,0,41],[6,0,6,7],[1,0,1,11],[5,0,5,6],[6,23,6,25],[6,29,6,32],[7,32,7,41],[2,0,2,3],[1,32,1,33],[1,35,1,36],[1,38,1,41]]}
["FICHA DE INSCRIÇÃO"]
["Comprovante da inscrição Nº:",null,null,null,null,null,null,null,null,null,null,null,{"$f":"IF(AS2=\"\",\"\",IF(VLOOKUP(AS2,Banco!A:AN,2,0)=\"\",\"\",VLOOKUP(AS2,Banco!A:AN,2,0)))","v":""},null,null,null,null,null,null,null,null,null,null,null,null,null,null,null,null,"DATA:",null,null,{"$f":"IF(AS2=\"\",\"\",IF(VLOOKUP(AS2,Banco!A:AN,3,0)=\"\",\"\",DAY(VLOOKUP(AS2,Banco!A:AN,3,0))))","v":""},null,"/",{"$f":"IF(AS2=\"\",\"\",IF(VLOOKUP(AS2,Banco!A:AN,3,0)=\"\",\"\",MONTH(VLOOKUP(AS2,Banco!A:AN,3,0))))","v":""},null,"/",{"$f":"IF(AS2=\"\",\"\",IF(VLOOKUP(AS2,Banco!A:AN,3,0)=\"\",\"\",YEAR(VLOOKUP(AS2,Banco!A:AN,3,0))))","v":""}]
["Atividade:",null,null,null,{"$f":"IF(AS2=\"\",\"\",IF(VLOOKUP(AS2,Banco!A:AN,4,0)=\"\",\"\",VLOOKUP(AS2,Banco!A:AN,4,0)))","v":""}]
["Manhã",null,null,"(",{"$f":"IF(AS2=\"\",\"\",IF(VLOOKUP(AS2,Banco!A:AN,5,0)=\"M\",\"X\",\"\"))","v":""},")",null,"Tarde",null,null,"(",{"$f":"IF(AS2=\"\",\"\",IF(VLOOKUP(AS2,Banco!A:AN,5,0)=\"T\",\"X\",\"\"))","v":""},")",null,"Noite",null,null,"(",{"$f":"IF(AS2=\"\",\"\",IF(VLOOKUP(AS2,Banco!A:AN,5,0)=\"N\",\"X\",\"\"))","v":""},")",null,"Horário de preferência:",null,null,null,null,null,null,null,null,{"$f":"IF(AS2=\"\",\"\",IF(VLOOKUP(AS2,Banco!A:AN,6,0)=\"\",\"\",VLOOKUP(AS2,Banco!A:AN,6,0)))","v":""}]
[]
["Nome completo:",null,null,null,null,null,null,{"$f":"IF(AS2=\"\",\"\",IF(VLOOKUP(AS2,Banco!A:AN,7,0)=\"\",\"\",VLOOKUP(AS2,Banco!A:AN,7,0)))","v":""}]
["Data de nascimento:",null,null,null,null,null,null,null,{"$f":"IF(AS2=\"\",\"\",IF(VLOOKUP(AS2,Banco!A:AN,8,0)=\"\",\"\",DAY(VLOOKUP(AS2,Banco!A:AN,8,0))))","v":""},null,"/",{"$f":"IF(AS2=\"\",\"\",IF(VLOOKUP(AS2,Banco!A:AN,8,0)=\"\",\"\",MONTH(VLOOKUP(AS2,Banco!A:AN,8,0))))","v":""},null,"/",{"$f":"IF(AS2=\"\",\"\",IF(VLOOKUP(AS2,Banco!A:AN,8,0)=\"\",\"\",YEAR(VLOOKUP(AS2,Banco!A:AN,8,0))))","v":""},null,null,null,null,null,null,null,null,"Sexo:",null,null,"(",{"$f":"IF(AS2=\"\",\"\",IF(VLOOKUP(AS2,Banco!A:AN,9,0)=\"F\",\"X\",\"\"))","v":""},")","Feminino",null,null,null,null,"(",{"$f":"IF(AS2=\"\",\"\",IF(VLOOKUP(AS2,Banco!A:AN,9,0)=\"M\",\"X\",\"\"))","v":""},")","Masculino"]
["RG:",null,{"$f":"IF(AS2=\"\",\"\",IF(VLOOKUP(AS2,Banco!A:AN,10,0)=\"\",\"\",VLOOKUP(AS2,Banco!A:AN,10,0)))","v":""},null,null,null,null,null,null,null,null,null,null,null,null,"Orgão Expeditor:",null,null,null,null,null,null,{"$f":"IF(AS2=\"\",\"\",IF(VLOOKUP(AS2,Banco!A:AN,11,0)=\"\",\"\",VLOOKUP(AS2,Banco!A:NA,11,0)))","v":""},null,null,null,null,null,null,"Estado:",null,null,{"$f":"IF(AS2=\"\",\"\",IF(VLOOKUP(AS2,Banco!A:AN,12,0)=\"\",\"\",VLOOKUP(AS2,Banco!A:AN,12,0)))","v":""}]
["CPF:",null,{"$f":"IF(AS2=\"\",\"\",IF(VLOOKUP(AS2,Banco!A:AN,13,0)=\"\",\"\",VLOOKUP(AS2,Banco!A:AN,13,0)))","v":""},null,null,null,null,null,null,null,null,null,null,null,null,null,null,null,null,null,null,null,null,null,"Renda Familiar:",null,null,null,null,null,{"$f":"IF(AS2=\"\",\"\",IF(VLOOKUP(AS2,Banco!A:AN,14,0)=\"\",\"\",VLOOKUP(AS2,Banco!A:AN,14,0)))","v":""}]
["Nome do pai:",null,null,null,null,null,{"$f":"IF(AS2=\"\",\"\",IF(VLOOKUP(AS2,Banco!A:AN,15,0)=\"\",\"\",VLOOKUP(AS2,Banco!A:AN,15,0)))","v":""}]
["Nome da mãe:",null,null,null,null,null,{"$f":"IF(AS2=\"\",\"\",IF(VLOOKUP(AS2,Banco!A:AN,16,0)=\"\",\"\",VLOOKUP(AS2,Banco!A:AN,16,0)))","v":""}]
["Endereço:",null,null,null,{"$f":"IF(AS2=\"\",\"\",IF(VLOOKUP(AS2,Banco!A:AN,17,0)=\"\",\"\",VLOOKUP(AS2,Banco!A:AN,17,0)))","v":""}]
["Bairro:",null,null,{"$f":"IF(AS2=\"\",\"\",IF(VLOOKUP(AS2,Banco!A:AN,18,0)=\"\",\"\",VLOOKUP(AS2,Banco!A:AN,18,0)))","v":""},null,null,null,null,null,null,null,null,null,null,null,null,null,null,null,null,null,null,null,null,"Cidade:",null,null,{"$f":"IF(AS2=\"\",\"\",IF(VLOOKUP(AS2,Banco!A:AN,19,0)=\"\",\"\",VLOOKUP(AS2,Banco!A:AN,19,0)))","v":""}]
["CEP:",null,{"$f":"IF(AS2=\"\",\"\",IF(VLOOKUP(AS2,Banco!A:AN,20,0)=\"\",\"\",VLOOKUP(AS2,Banco!A:AN,20,0)))","v":""},null,null,null,null,null,null,null,null,null,"UF:",null,{"$f":"IF(AS2=\"\",\"\",IF(VLOOKUP(AS2,Banco!A:AN,21,0)=\"\",\"\",VLOOKUP(AS2,Banco!A:AM,21,0)))","v":""},null,null,null,"Telefone contato:",null,null,null,null,null,null,{"$f":"IF(AS2=\"\",\"\",IF(VLOOKUP(AS2,Banco!A:AN,22,0)=\"\",\"\",VLOOKUP(AS2,Banco!A:AM,22,0)))","v":""}]
["Celular:",null,null,{"$f":"IF(AS2=\"\",\"\",IF(VLOOKUP(AS2,Banco!A:AN,23,0)=\"\",\"\",VLOOKUP(AS2,Banco!A:AM,23,0)))","v":""},null,null,null,null,null,null,null,null,null,"Recado:",null,null,null,{"$f":"IF(AS2=\"\",\"\",IF(VLOOKUP(AS2,Banco!A:AN,24,0)=\"\",\"\",VLOOKUP(AS2,Banco!A:AM,24,0)))","v":""},null,null,null,null,null,null,null,null,"Falar c/ quem: ",null,null,null,null,null,{"$f":"IF(AS2=\"\",\"\",IF(VLOOKUP(AS2,Banco!A:AN,25,0)=\"\",\"\",VLOOKUP(AS2,Banco!A:AM,25,0)))","v":""}]
["e-mail:",null,null,{"$f":"IF(AS2=\"\",\"\",IF(VLOOKUP(AS2,Banco!A:AN,26,0)=\"\",\"\",VLOOKUP(AS2,Banco!A:AM,26,0)))","v":""}]
["Trabalha:",null,null,null,"(",{"$f":"IF(AS2=\"\",\"\",IF(VLOOKUP(AS2,Banco!A:AN,27,0)=\"N\",\"X\",\"\"))","v":""},")","Não",null,null,"(",{"$f":"IF(AS2=\"\",\"\",IF(VLOOKUP(AS2,Banco!A:AN,27,0)=\"S\",\"X\",\"\"))","v":""},")","Sim",null,null,"Onde:",null,null,{"$f":"IF(AS2=\"\",\"\",IF(VLOOKUP(AS2,Banco!A:AN,28,0)=\"\",\"\",VLOOKUP(AS2,Banco!A:AM,28,0)))","v":""},null,null,null,null,null,null,null,null,null,null,"Tel.:",null,{"$f":"IF(AS2=\"\",\"\",IF(VLOOKUP(AS2,Banco!A:AN,29,0)=\"\",\"\",VLOOKUP(AS2,Banco!A:AM,29,0)))","v":""}]
["Estado Civil:",null,null,null,null,"(",{"$f":"IF(AS2=\"\",\"\",IF(VLOOKUP(AS2,Banco!A:AN,30,0)=\"S\",\"X\",\"\"))","v":""},")","Solteiro(a)",null,null,null,null,null,"(",{"$f":"IF(AS2=\"\",\"\",IF(VLOOKUP(AS2,Banco!A:AN,30,0)=\"C\",\"X\",\"\"))","v":""},")","Casado(a)",null,null,null,null,"(",{"$f":"IF(AS2=\"\",\"\",IF(VLOOKUP(AS2,Banco!A:AN,30,0)=\"D\",\"X\",\"\"))","v":""},")","Divorciado(a)",null,null,null,null,null,"(",{"$f":"IF(AS2=\"\",\"\",IF(VLOOKUP(AS2,Banco!A:AN,30,0)=\"V\",\"X\",\"\"))","v":""},")","Viuvo(a)"]
["Tem filhos?",null,null,null,null,"(",{"$f":"IF(AS2=\"\",\"\",IF(VLOOKUP(AS2,Banco!A:AN,31,0)=\"\",\"\",IF(VLOOKUP(AS2,Banco!A:AN,31,0)=0,\"X\",\"\")))","v":""},")","Não",null,null,"(",{"$f":"IF(AS2=\"\",\"\",IF(VLOOKUP(AS2,Banco!A:AN,31,0)>0,\"X\",\"\"))","v":""},")","Sim",null,null,"Quantos?",null,null,null,{"$f":"IF(AS2=\"\",\"\",IF(VLOOKUP(AS2,Banco!A:AN,31,0)>0,VLOOKUP(AS2,Banco!A:AN,31,0),\"\"))","v":""}]
["Escolaridade:",null,null,null,null,"(",{"$f":"IF(AS2=\"\",\"\",IF(VLOOKUP(AS2,Banco!A:AN,32,0)=\"concluiu\",\"X\",\"\"))","v":""},")","Concluiu - Série:",null,null,null,null,null,null,{"$f":"IF(G20=\"X\",VLOOKUP(AS2,Banco!A:AN,33,0),\"\")","v":""},null,null,null,null,null,null,null,null,"(",{"$f":"IF(AS2=\"\",\"\",IF(VLOOKUP(AS2,Banco!A:AN,32,0)=\"estuda\",\"X\",\"\"))","v":""},")","Estuda - Série:",null,null,null,null,null,{"$f":"IF(Z20=\"X\",VLOOKUP(AS2,Banco!A:AN,33,0),\"\")","v":""}]
[null,"(",{"$f":"IF(AS2=\"\",\"\",IF(VLOOKUP(AS2,Banco!A:AN,32,0)=\"não estuda\",\"X\",\"\"))","v":""},")","Não estuda - Série que parou:",null,null,null,null,null,null,null,null,null,null,null,{"$f":"IF(C21=\"X\",VLOOKUP(AS2,Banco!A:AN,33,0),\"\")","v":""},null,null,null,null,null,"Motivo:",null,null,{"$f":"IF(C21=\"X\",VLOOKUP(AS2,Banco!A:AN,34,0),\"\")","v":""}]
[]
["Nome do Responsável:",null,null,null,null,null,null,null,null,{"$f":"IF(AS2=\"\",\"\",IF(VLOOKUP(AS2,Banco!A:AN,35,0)=\"\",\"\",VLOOKUP(AS2,Banco!A:AM,35,0)))","v":""}]
["RG:",null,{"$f":"IF(AS2=\"\",\"\",IF(VLOOKUP(AS2,Banco!A:AN,36,0)=\"\",\"\",VLOOKUP(AS2,Banco!A:AM,36,0)))","v":""},null,null,null,null,null,null,null,null,null,null,null,null,"Orgão Expeditor:",null,null,null,null,null,null,{"$f":"IF(AS2=\"\",\"\",IF(VLOOKUP(AS2,Banco!A:AN,37,0)=\"\",\"\",VLOOKUP(AS2,Banco!A:AM,37,0)))","v":""},null,null,null,null,null,null,"Estado:",null,null,{"$f":"IF(AS2=\"\",\"\",IF(VLOOKUP(AS2,Banco!A:AN,38,0)=\"\",\"\",VLOOKUP(AS2,Banco!A:AM,38,0)))","v":""}]
["CPF:",null,{"$f":"IF(AS2=\"\",\"\",IF(VLOOKUP(AS2,Banco!A:AN,39,0)=\"\",\"\",VLOOKUP(AS2,Banco!A:AM,39,0)))","v":""},null,null,null,null,null,null,null,null,null,null,null,null,null,null,null,null,"Telefone para contato:",null,null,null,null,null,null,null,null,{"$f":"IF(AS2=\"\",\"\",IF(VLOOKUP(AS2,Banco!A:AN,40,0)=\"\",\"\",VLOOKUP(AS2,Banco!A:AN,40,0)))","v":""}]
[]
["Escola de Formação da Juventude – EFJ/IDF/PUC"]
[]
["Comprovante da inscrição Nº:",null,null,null,null,null,null,null,null,null,null,null,{"$f":"M2","v":""},null,null,null,null,null,null,null,null,null,null,null,null,null,null,null,null,"DATA:",null,null,{"$f":"AG2","v":""},null,"/",{"$f":"AJ2","v":""},null,"/",{"$f":"AM2","v":""}]
["Nome completo:",null,null,null,null,null,null,{"$f":"H6","v":""}]
["Atividade:",null,null,null,{"$f":"E3","v":""}]
["Manhã",null,null,"(",{"$f":"E4","v":""},")",null,"Tarde",null,null,"(",{"$f":"L4","v":""},")",null,"Noite",null,null,"(",{"$f":"S4","v":""},")",null,"Horário de preferência:",null,null,null,null,null,null,null,null,{"$f":"AE4","v":""}]
[]
["Escola de Formação da Juventude – EFJ/IDF/PUC"]

{"sheet":"Banco","index":1,"n_rows":2,"n_cols":43,"rows_kept":2,"cut":false,"hidden":true,"merged":[]}
["Ordem","Comprovante da inscrição Nº","DATA","Atividade","Período","Horário de preferência","Nome ","nascimento","Sexo","RG","OE","UF","CPF","Renda Familiar","Pai","Mãe","Endereço","Bairro","Cidade","CEP","UF","Telefone contato","Celular","Recado","Falar com","e-mail","trabalha","Loca Trabalho","Fone Comercial","Estado civil","Filhos","Escolaridade","Série","Motivo","Responsável ","RG","OE","UF","CPF","Contato","gravou","motivo exclusão","localizar aluno"]
[1,"123.123/2012","29/11/2012","PID - Projeto de Inclusão Digital","T","0,666666666666667","Luis Guilherme Magalhães","1983-12-09","M",9999,"SSP","GO","999.999.999 - 99","R$ 622,00","Espaço reservado para inserir o nome do Pai","Espaço reservado para inserir o nome da Mãe","Rua da Alvorada, qd. entardecer lt 9","Bairro Amanhecer","Goiânia",74000000,"GO","(62) 9607-2031","(62) 8160-7755","(62) 9999-8888","responsavel","professor@luisguilherme.com.br","S","Espaço reservado para inserir o local do trabalho","(62) 8888-9999","S",2,"Não Estuda","serie parou","Espaço reservado para inserir o motivo de parar de estudar","Espaço reservado para inserir o nome do Responsável",88888,"DGPC","GO","999.999.999 - 99","(62) 7777-8888","S",null,{"$f":"IF(AO2=\"S\",G2,\"\")","v":"Luis Guilherme Magalhães"}]

{"sheet":"Parametros","index":2,"n_rows":35,"n_cols":22,"rows_kept":35,"cut":false,"hidden":true,"merged":[]}
["Atividade Pretendida",null,null,null,null,null,"tb_nascimento.Enabled "," True",{"$f":"\"userform1.\"&G1&\" = False\"","v":"userform1.tb_nascimento.Enabled  = False"},null,null,null,null,null,null,{"$f":"LEFT(G1,LEN(G1)-8)&\"BackColor = &H80000005\"","v":"tb_nascimento.BackColor = &H80000005"},null,null,null,null,null,{"$f":"\"userform1.\"&LEFT(G1,LEN(G1)-8)&\"BackColor = &H8000000B\"","v":"userform1.tb_nascimento.BackColor = &H8000000B"}]
["PID - Projeto de Inclusão Digital",null,null,null,null,null,"tb_CPFaluno.Enabled "," True",{"$f":"\"userform1.\"&G2&\" = False\"","v":"userform1.tb_CPFaluno.Enabled  = False"},null,null,null,null,null,null,{"$f":"LEFT(G2,LEN(G2)-8)&\"BackColor = &H80000005\"","v":"tb_CPFaluno.BackColor = &H80000005"},null,null,null,null,null,{"$f":"\"userform1.\"&LEFT(G2,LEN(G2)-8)&\"BackColor = &H8000000B\"","v":"userform1.tb_CPFaluno.BackColor = &H8000000B"}]
["Nova...",null,null,null,null,null,"tb_RGaluno.Enabled "," True","userform1.tb_RGaluno.Enabled  = False",null,null,null,null,null,null,"tb_RGaluno.BackColor = &H80000005",null,null,null,null,null,"userform1.tb_RGaluno.BackColor = &H8000000B"]
[null,null,null,null,null,null,"tb_OE_RGaluno.Enabled "," True","userform1.tb_OE_RGaluno.Enabled  = False",null,null,null,null,null,null,"tb_OE_RGaluno.BackColor = &H80000005",null,null,null,null,null,"userform1.tb_OE_RGaluno.BackColor = &H8000000B"]
[null,null,null,null,null,null,"cb_UF_RGaluno.Enabled "," True","userform1.cb_UF_RGaluno.Enabled  = False",null,null,null,null,null,null,"cb_UF_RGaluno.BackColor = &H80000005",null,null,null,null,null,"userform1.cb_UF_RGaluno.BackColor = &H8000000B"]
[null,null,null,null,null,null,"tb_nomePai.Enabled "," True","userform1.tb_nomePai.Enabled  = False",null,null,null,null,null,null,"tb_nomePai.BackColor = &H80000005",null,null,null,null,null,"userform1.tb_nomePai.BackColor = &H8000000B"]
[null,null,null,null,null,null,"tb_nomeMae.Enabled "," True","userform1.tb_nomeMae.Enabled  = False",null,null,null,null,null,null,"tb_nomeMae.BackColor = &H80000005",null,null,null,null,null,"userform1.tb_nomeMae.BackColor = &H8000000B"]
[null,null,null,null,null,null,"tb_endereco.Enabled "," True","userform1.tb_endereco.Enabled  = False",null,null,null,null,null,null,"tb_endereco.BackColor = &H80000005",null,null,null,null,null,"userform1.tb_endereco.BackColor = &H8000000B"]
[null,null,null,null,null,null,"tb_bairro.Enabled "," True","userform1.tb_bairro.Enabled  = False",null,null,null,null,null,null,"tb_bairro.BackColor = &H80000005",null,null,null,null,null,"userform1.tb_bairro.BackColor = &H8000000B"]
[null,null,null,null,null,null,"tb_cidade.Enabled "," True","userform1.tb_cidade.Enabled  = False",null,null,null,null,null,null,"tb_cidade.BackColor = &H80000005",null,null,null,null,null,"userform1.tb_cidade.BackColor = &H8000000B"]
[null,null,null,null,null,null,"cb_UF.Enabled "," True","userform1.cb_UF.Enabled  = False",null,null,null,null,null,null,"cb_UF.BackColor = &H80000005",null,null,null,null,null,"userform1.cb_UF.BackColor = &H8000000B"]
[null,null,null,null,null,null,"tb_CEP.Enabled "," True","userform1.tb_CEP.Enabled  = False",null,null,null,null,null,null,"tb_CEP.BackColor = &H80000005",null,null,null,null,null,"userform1.tb_CEP.BackColor = &H8000000B"]
[null,null,null,null,null,null,"tb_fone.Enabled "," True","userform1.tb_fone.Enabled  = False",null,null,null,null,null,null,"tb_fone.BackColor = &H80000005",null,null,null,null,null,"userform1.tb_fone.BackColor = &H8000000B"]
[null,null,null,null,null,null,"tb_celular.Enabled "," True","userform1.tb_celular.Enabled  = False",null,null,null,null,null,null,"tb_celular.BackColor = &H80000005",null,null,null,null,null,"userform1.tb_celular.BackColor = &H8000000B"]
[null,null,null,null,null,null,"tb_foneRecado.Enabled "," True","userform1.tb_foneRecado.Enabled  = False",null,null,null,null,null,null,"tb_foneRecado.BackColor = &H80000005",null,null,null,null,null,"userform1.tb_foneRecado.BackColor = &H8000000B"]
[null,null,null,null,null,null,"tb_nomeRecado.Enabled "," True","userform1.tb_nomeRecado.Enabled  = False",null,null,null,null,null,null,"tb_nomeRecado.BackColor = &H80000005",null,null,null,null,null,"userform1.tb_nomeRecado.BackColor = &H8000000B"]
[null,null,null,null,null,null,"tb_renda.Enabled "," True","userform1.tb_renda.Enabled  = False",null,null,null,null,null,null,"tb_renda.BackColor = &H80000005",null,null,null,null,null,"userform1.tb_renda.BackColor = &H8000000B"]
[null,null,null,null,null,null,"tb_email.Enabled "," True","userform1.tb_email.Enabled  = False",null,null,null,null,null,null,"tb_email.BackColor = &H80000005",null,null,null,null,null,"userform1.tb_email.BackColor = &H8000000B"]
[null,null,null,null,null,null,"tb_foneComercial.Enabled "," True","userform1.tb_foneComercial.Enabled  = False",null,null,null,null,null,null,"tb_foneComercial.BackColor = &H80000005",null,null,null,null,null,"userform1.tb_foneComercial.BackColor = &H8000000B"]
[null,null,null,null,null,null,"tb_localTrabalho.Enabled "," True","userform1.tb_localTrabalho.Enabled  = False",null,null,null,null,null,null,"tb_localTrabalho.BackColor = &H80000005",null,null,null,null,null,"userform1.tb_localTrabalho.BackColor = &H8000000B"]
[null,null,null,null,null,null,"tb_qtdeFilhos.Enabled "," True","userform1.tb_qtdeFilhos.Enabled  = False",null,null,null,null,null,null,"tb_qtdeFilhos.BackColor = &H80000005",null,null,null,null,null,"userform1.tb_qtdeFilhos.BackColor = &H8000000B"]
[null,null,null,null,null,null,"cb_escolaridade.Enabled "," True","userform1.cb_escolaridade.Enabled  = False",null,null,null,null,null,null,"cb_escolaridade.BackColor = &H80000005",null,null,null,null,null,"userform1.cb_escolaridade.BackColor = &H8000000B"]
[null,null,null,null,null,null,"tb_serie.Enabled "," True","userform1.tb_serie.Enabled  = False",null,null,null,null,null,null,"tb_serie.BackColor = &H80000005",null,null,null,null,null,"userform1.tb_serie.BackColor = &H8000000B"]
[null,null,null,null,null,null,"tb_motivo.Enabled "," True","userform1.tb_motivo.Enabled  = False",null,null,null,null,null,null,"tb_motivo.BackColor = &H80000005",null,null,null,null,null,"userform1.tb_motivo.BackColor = &H8000000B"]
[null,null,null,null,null,null,"tb_nomeResp.Enabled "," True","userform1.tb_nomeResp.Enabled  = False",null,null,null,null,null,null,"tb_nomeResp.BackColor = &H80000005",null,null,null,null,null,"userform1.tb_nomeResp.BackColor = &H8000000B"]
[null,null,null,null,null,null,"ob_masculino.Enabled "," True","userform1.ob_masculino.Enabled  = False",null,null,null,null,null,null,"ob_masculino.BackColor = &H80000005",null,null,null,null,null,"userform1.ob_masculino.BackColor = &H8000000B"]
[null,null,null,null,null,null,"ob_feminino.Enabled "," True","userform1.ob_feminino.Enabled  = False",null,null,null,null,null,null,"ob_feminino.BackColor = &H80000005",null,null,null,null,null,"userform1.ob_feminino.BackColor = &H8000000B"]
[null,null,null,null,null,null,"ob_trabalhaSIM.Enabled "," True","userform1.ob_trabalhaSIM.Enabled  = False",null,null,null,null,null,null,"ob_trabalhaSIM.BackColor = &H80000005",null,null,null,null,null,"userform1.ob_trabalhaSIM.BackColor = &H8000000B"]
[null,null,null,null,null,null,"ob_trabalhaNAO.Enabled "," True","userform1.ob_trabalhaNAO.Enabled  = False",null,null,null,null,null,null,"ob_trabalhaNAO.BackColor = &H80000005",null,null,null,null,null,"userform1.ob_trabalhaNAO.BackColor = &H8000000B"]
[null,null,null,null,null,null,"ob_solteiro.Enabled "," True","userform1.ob_solteiro.Enabled  = False",null,null,null,null,null,null,"ob_solteiro.BackColor = &H80000005",null,null,null,null,null,"userform1.ob_solteiro.BackColor = &H8000000B"]
[null,null,null,null,null,null,"ob_casado.Enabled "," True","userform1.ob_casado.Enabled  = False",null,null,null,null,null,null,"ob_casado.BackColor = &H80000005",null,null,null,null,null,"userform1.ob_casado.BackColor = &H8000000B"]
[null,null,null,null,null,null,"ob_divorciado.Enabled "," True","userform1.ob_divorciado.Enabled  = False",null,null,null,null,null,null,"ob_divorciado.BackColor = &H80000005",null,null,null,null,null,"userform1.ob_divorciado.BackColor = &H8000000B"]
[null,null,null,null,null,null,"ob_viuvo.Enabled "," True","userform1.ob_viuvo.Enabled  = False",null,null,null,null,null,null,"ob_viuvo.BackColor = &H80000005",null,null,null,null,null,"userform1.ob_viuvo.BackColor = &H8000000B"]
[null,null,null,null,null,null,"ob_filhosSIM.Enabled "," True","userform1.ob_filhosSIM.Enabled  = False",null,null,null,null,null,null,"ob_filhosSIM.BackColor = &H80000005",null,null,null,null,null,"userform1.ob_filhosSIM.BackColor = &H8000000B"]
[null,null,null,null,null,null,"ob_filhosNAO.Enabled "," True","userform1.ob_filhosNAO.Enabled  = False",null,null,null,null,null,null,"ob_filhosNAO.BackColor = &H80000005",null,null,null,null,null,"userform1.ob_filhosNAO.BackColor = &H8000000B"]

{"sheet":"Plan1","index":3,"n_rows":0,"n_cols":0,"rows_kept":0,"cut":false,"hidden":false,"merged":[]}

{"sheet":"Plan2","index":4,"n_rows":0,"n_cols":0,"rows_kept":0,"cut":false,"hidden":false,"merged":[]}